fUSD/lending_fUSD_20240531
["ID","MTS","AMOUNT","RATE_DAILY","PERIOD"]
[328317811,1717161051886,-167.45740301,0.00032876,11]
[328317812,1717161051944,-293.25058754,0.00032876,11]
[328317813,1717161051964,-39.29200945,0.00032876,11]
[328317814,1717161051973,-554.87,0.00032876,11]
[328317815,1717161051983,-500.0,0.00032876,11]
[328317816,1717161051995,-351.15859173,0.00032876,11]
[328317817,1717161052198,-1302.39385506,0.00032875,4]
[328317818,1717161052207,-148.84140827,0.00032876,11]
[328317819,1717161052216,-554.87,0.00032876,11]
[328317820,1717161052225,-642.75,0.00032876,11]
[328317821,1717161052234,-500.0,0.00032876,11]
[328317822,1717161052243,-642.75,0.00032876,11]
[328317823,1717161052253,-500.0,0.00032876,11]
[328317824,1717161052261,-500.0,0.00032876,11]
[328317825,1717161052271,-642.75,0.00032876,11]
[328317826,1717161052280,-184.09409595,0.00032876,11]
[328317827,1717161052297,-313.37347954,0.00032876,11]
[328317828,1717161053236,2550.34059855,0.00010794,2]
[328317829,1717161098613,107022.25940145,0.00010794,2]
[328317830,1717161098636,16728.75003866,0.00010794,2]
[328317831,1717161288642,519.08041248,0.00010794,2]
[328317833,1717161542812,359.0,0.00013957,2]
[328317835,1717161607207,-535.46209097,0.00014317,2]
[328317836,1717161607237,-1399.84501074,0.00014318,2]
[328317837,1717161607261,-430.69289829,0.00014319,2]
[328317838,1717161637674,-1352.0,0.00014319,2]
[328317839,1717161670327,-1101.0,0.00014319,2]
[328317840,1717161720848,-1350.0,0.00014319,2]
[328317841,1717161941111,-1330.36363076,0.00014319,2]
[328317865,1717162232510,-447.71134101,0.00014998,2]
[328317866,1717162232520,-105374.34327629,0.00014999,2]
[328317916,1717162238264,-31248.64074954,0.00014999,2]
[328317918,1717162238275,-328160.42372519,0.00014999,2]
[328317930,1717162238564,-10575.11344891,0.00014999,2]
[328317931,1717162238576,-32300.09590128,0.00014999,2]
[328317932,1717162238588,-3477.10807193,0.00014999,2]
[328317933,1717162238654,-21.0,0.00014999,2]
[328317934,1717162238670,-3925.18451466,0.00014999,2]
[328317937,1717162242189,-22238.49267672,0.00014999,2]
[328317941,1717162243614,-469.67010088,0.00014999,2]
[328317942,1717162243627,-1243.822605,0.00014999,2]
[328317943,1717162243741,-765.12000001,0.00014999,2]
[328317944,1717162243753,-9011.14434974,0.00014999,2]
[328317945,1717162243764,-2192.94884986,0.00014999,2]
[328317946,1717162243776,-885.34973953,0.00014999,2]
[328317947,1717162243787,-918.714812,0.00014999,2]
[328317948,1717162243798,-10993.9145068,0.00014999,2]
[328317949,1717162245219,-5012.84792341,0.00014999,2]
[328317951,1717162245810,-5005.86660649,0.00014999,2]
[328317952,1717162245823,-966.50033397,0.00014999,2]
[328317953,1717162245834,-101171.83281379,0.00014999,2]
[328317954,1717162245844,-7048.83729358,0.00015,2]
[328317955,1717162245853,-8096.17995186,0.00017259,2]
[328317956,1717162245865,-150.99,0.00019726,2]
[328317957,1717162245874,-654.32109394,0.00023999,2]
[328317958,1717162245883,-3851.75937877,0.00024,2]
[328317959,1717162245892,-157.43,0.00024384,2]
[328317960,1717162245901,-176.84926974,0.00024798,2]
[328317961,1717162245912,-153.73215794,0.00024799,2]
[328317962,1717162245922,-837.80333386,0.00025616,2]
[328317963,1717162245931,-1284.63354601,0.00025616,2]
[328317964,1717162245940,-323.08,0.00026036,2]
[328317965,1717162245949,-250.0,0.00027614,2]
[328317966,1717162245958,-653.0,0.000278,4]
[328317967,1717162245968,-150.0,0.00027837,2]
[328317968,1717162245977,-338.38053793,0.00028,7]
[328317969,1717162245990,-8912.3404167,0.00028,2]
[328317970,1717162246001,-12779.38,0.00028067,2]
[328317971,1717162246011,-323.08,0.000283,2]
[328317972,1717162246020,-250.0,0.00028399,2]
[328317973,1717162246029,-1355.83,0.00028405,2]
[328317974,1717162246039,-213.02,0.00028606,2]
[328317975,1717162246048,-1220.77,0.00028835,2]
[328317976,1717162246058,-170.0,0.00029296,2]
[328317977,1717162246067,-496.0,0.0003,7]
[328317978,1717162246077,-323.08,0.00030564,2]
[328317979,1717162246087,-375.0,0.00031,8]
[328317980,1717162246096,-150.66714897,0.00031199,7]
[328317981,1717162246106,-152.56637886,0.00031306,7]
[328317982,1717162246116,-163.84,0.00031644,2]
[328317983,1717162246125,-948.82,0.00031644,2]
[328317984,1717162246135,-163.84,0.00031644,2]
[328317985,1717162246144,-161.43,0.00031644,2]
[328317986,1717162246156,-150.66714897,0.00031896,7]
[328317987,1717162246165,-2854.03186402,0.00031942,3]
[328317988,1717162246175,-167.65268729,0.00031956,2]
[328317989,1717162246184,-202.01,0.0003199,2]
[328317992,1717162246194,-344547.0,0.00032,2]
[328317993,1717162246203,-2854.03186393,0.00032056,3]
[328317994,1717162246212,-167.65268729,0.00032163,2]
[328317995,1717162246222,-2854.03186393,0.00032171,3]
[328317996,1717162246232,-213.02,0.00032182,2]
[328317997,1717162246241,-2854.03186393,0.00032285,4]
[328317998,1717162246251,-153.25751709,0.00032299,7]
[328317999,1717162246262,-150.66714897,0.00032358,7]
[328318000,1717162246271,-167.65268729,0.00032371,2]
[328318001,1717162246280,-153.25751709,0.00032372,7]
[328318002,1717162246289,-2854.03186393,0.00032399,4]
[328318003,1717162246299,-2854.03186393,0.00032514,4]
[328318004,1717162246308,-167.65268729,0.00032578,2]
[328318005,1717162246318,-155.5237192,0.00032596,7]
[328318006,1717162246328,-500.0,0.00032612,2]
[328318007,1717162246337,-200.0,0.00032612,2]
[328318008,1717162246347,-2854.03186393,0.00032628,4]
[328318009,1717162246356,-195.53713014,0.00032643,7]
[328318010,1717162246366,-2854.03186393,0.00032743,4]
[328318011,1717162246375,-167.99866642,0.00032776,2]
[328318012,1717162246384,-175.61523328,0.00032776,2]
[328318013,1717162246393,-326.35915896,0.00032776,2]
[328318014,1717162246402,-167.65268729,0.00032785,2]
[328318015,1717162246413,-487.0,0.000328,17]
[328318016,1717162246422,-975.0,0.000328,17]
[328318017,1717162246431,-160.0,0.000328,6]
[328318018,1717162246440,-150.0,0.000328,12]
[328318019,1717162246450,-323.08,0.00032828,2]
[328318020,1717162246459,-154.12680175,0.00032833,7]
[328318021,1717162246469,-4314.90804987,0.00032844,4]
[328318023,1717162246478,-2854.03186393,0.00032857,4]
[328318025,1717162246488,-89466.9363809,0.00032865,2]
[328318027,1717162246504,-15072.0930045,0.00032865,2]
[328318029,1717162246514,-4615.0155032,0.00032865,2]
[328318031,1717162246523,-513.97963924,0.00032865,2]
[328318032,1717162246533,-151.0,0.00032866,2]
[328318033,1717162246542,-326.36039384,0.00032874,4]
[328318034,1717162246552,-5000.0,0.00032874,7]
[328318035,1717162246562,-2366.22973263,0.00032874,4]
[328318036,1717162246571,-155.0,0.00032874,4]
[328318037,1717162246581,-790.98303269,0.00032874,4]
[328318038,1717162246590,-155.0,0.00032874,2]
[328318039,1717162246599,-155.0,0.00032874,4]
[328318040,1717162246608,-517.26339882,0.00032874,4]
[328318041,1717162246617,-325.39983263,0.00032874,4]
[328318042,1717162246627,-480.88976442,0.00032874,4]
[328318043,1717162246636,-155.0,0.00032874,4]
[328318044,1717162246645,-237.7692352,0.00032874,4]
[328318045,1717162246657,-542.00347646,0.00032874,4]
[328318046,1717162246668,-502.67015523,0.00032874,4]
[328318047,1717162246677,-1053.9343751,0.00032875,15]
[328318048,1717162246686,-784.71344393,0.00032875,2]
[328318049,1717162246695,-428.90206147,0.00032875,4]
[328318050,1717162246704,-252.0274594,0.00032876,5]
[328318051,1717162246714,-295356.93506516,0.00032876,11]
[328318052,1717162246723,-496.71528541,0.00032876,11]
[328318053,1717162246733,-552.37950248,0.00032876,11]
[328318054,1717162246743,-500.0,0.00032876,11]
[328318055,1717162246753,-503.88640563,0.00032876,11]
[328318056,1717162246762,-500.49134274,0.00032876,11]
[328318057,1717162246771,-531.8319871,0.00032876,4]
[328318058,1717162246781,-500.0,0.00032876,11]
[328318059,1717162246790,-500.0,0.00032876,11]
[328318060,1717162246800,-500.0,0.00032876,11]
[328318061,1717162246809,-2000.0,0.00032876,2]
[328318062,1717162246818,-155.016757,0.00032876,7]
[328318063,1717162246827,-152.031251,0.00032876,7]
[328318064,1717162246836,-200.0,0.00032876,2]
[328318065,1717162246846,-220.897929,0.00032876,7]
[328318066,1717162246855,-516.92332214,0.00032876,11]
[328318067,1717162246865,-1000.0,0.00032876,2]
[328318068,1717162246874,-1004.82164376,0.00032876,2]
[328318069,1717162246884,-151.39618,0.00032876,7]
[328318070,1717162246895,-151.861167,0.00032876,7]
[328318071,1717162246906,-151.888205,0.00032876,7]
[328318072,1717162246915,-500.0,0.00032876,11]
[328318073,1717162246925,-500.0,0.00032876,11]
[328318074,1717162246934,-568.44033908,0.00032876,11]
[328318075,1717162246943,-500.0,0.00032876,11]
[328318076,1717162246953,-500.0,0.00032876,11]
[328318077,1717162246963,-500.0,0.00032876,11]
[328318078,1717162246973,-500.0,0.00032876,11]
[328318079,1717162246982,-428.62716247,0.00032876,11]
[328318080,1717162246991,-500.0,0.00032876,11]
[328318081,1717162247000,-500.0,0.00032876,11]
[328318082,1717162247009,-500.0,0.00032876,11]
[328318083,1717162247018,-646.93,0.00032876,11]
[328318084,1717162247028,-500.0,0.00032876,11]
[328318085,1717162247037,-500.0,0.00032876,11]
[328318086,1717162247047,-500.0,0.00032876,11]
[328318087,1717162247056,-500.0,0.00032876,11]
[328318088,1717162247065,-500.0,0.00032876,11]
[328318089,1717162247075,-500.0,0.00032876,11]
[328318090,1717162247084,-500.0,0.00032876,11]
[328318091,1717162247096,-514.1711485,0.00032876,11]
[328318092,1717162247106,-500.0,0.00032876,11]
[328318093,1717162247116,-500.0,0.00032876,11]
[328318094,1717162247126,-500.0,0.00032876,11]
[328318095,1717162247134,-500.0,0.00032876,11]
[328318096,1717162247143,-500.0,0.00032876,11]
[328318097,1717162247152,-500.0,0.00032876,11]
[328318098,1717162247163,-500.0,0.00032876,11]
[328318099,1717162247172,-500.0,0.00032876,11]
[328318100,1717162247181,-500.0,0.00032876,11]
[328318101,1717162247190,-317.66732719,0.00032876,11]
[328318102,1717162247199,-500.0,0.00032876,11]
[328318103,1717162247208,-500.0,0.00032876,11]
[328318104,1717162247217,-500.0,0.00032876,11]
[328318105,1717162247226,-500.0,0.00032876,11]
[328318106,1717162247234,-500.0,0.00032876,11]
[328318107,1717162247244,-494.83359859,0.00032876,11]
[328318108,1717162247256,-500.0,0.00032876,11]
[328318109,1717162247265,-500.0,0.00032876,11]
[328318110,1717162247275,-500.0,0.00032876,11]
[328318111,1717162247284,-500.0,0.00032876,11]
[328318112,1717162247294,-500.0,0.00032876,11]
[328318113,1717162247303,-511.27723239,0.00032876,11]
[328318114,1717162247313,-500.0,0.00032876,11]
[328318115,1717162247323,-500.0,0.00032876,11]
[328318116,1717162247335,-500.0,0.00032876,11]
[328318117,1717162247345,-500.0,0.00032876,11]
[328318118,1717162247354,-500.0,0.00032876,11]
[328318119,1717162247363,-500.0,0.00032876,11]
[328318120,1717162247372,-500.0,0.00032876,11]
[328318121,1717162247381,-500.0,0.00032876,11]
[328318122,1717162247390,-500.0,0.00032876,11]
[328318123,1717162247400,-500.0,0.00032876,11]
[328318124,1717162247412,-605.73735662,0.00032876,11]
[328318125,1717162247421,-354.61347551,0.00032876,11]
[328318126,1717162247430,-500.0,0.00032876,11]
[328318127,1717162247439,-500.0,0.00032876,11]
[328318128,1717162247448,-500.0,0.00032876,11]
[328318129,1717162247457,-500.0,0.00032876,11]
[328318130,1717162247465,-300.39265402,0.00032876,11]
[328318131,1717162247474,-500.0,0.00032876,11]
[328318132,1717162247484,-563.18988103,0.00032876,11]
[328318133,1717162247493,-500.0,0.00032876,11]
[328318134,1717162247503,-500.0,0.00032876,11]
[328318135,1717162247512,-500.0,0.00032876,11]
[328318136,1717162247521,-500.0,0.00032876,11]
[328318137,1717162247530,-500.0,0.00032876,11]
[328318138,1717162247540,-500.0,0.00032876,11]
[328318139,1717162247549,-500.0,0.00032876,11]
[328318140,1717162247558,-500.0,0.00032876,11]
[328318141,1717162247568,-500.0,0.00032876,11]
[328318142,1717162247577,-500.0,0.00032876,11]
[328318143,1717162247586,-500.0,0.00032876,11]
[328318144,1717162247595,-488.31576289,0.00032876,11]
[328318145,1717162247604,-500.0,0.00032876,11]
[328318146,1717162247614,-500.0,0.00032876,11]
[328318147,1717162247624,-500.0,0.00032876,11]
[328318148,1717162247633,-500.0,0.00032876,11]
[328318149,1717162247642,-500.0,0.00032876,11]
[328318150,1717162247651,-500.0,0.00032876,11]
[328318151,1717162247664,-500.0,0.00032876,11]
[328318152,1717162247674,-500.0,0.00032876,11]
[328318153,1717162247684,-500.0,0.00032876,11]
[328318154,1717162247693,-500.0,0.00032876,11]
[328318155,1717162247702,-610.02621149,0.00032876,11]
[328318156,1717162247711,-500.0,0.00032876,11]
[328318157,1717162247721,-500.0,0.00032876,11]
[328318158,1717162247730,-500.0,0.00032876,11]
[328318159,1717162247740,-511.74590139,0.00032876,11]
[328318160,1717162247749,-500.0,0.00032876,11]
[328318161,1717162247759,-500.0,0.00032876,11]
[328318162,1717162247769,-500.0,0.00032876,11]
[328318163,1717162247778,-500.0,0.00032876,11]
[328318164,1717162247787,-500.0,0.00032876,11]
[328318165,1717162247797,-500.0,0.00032876,11]
[328318166,1717162247806,-500.0,0.00032876,11]
[328318167,1717162247816,-500.0,0.00032876,11]
[328318168,1717162247826,-500.0,0.00032876,11]
[328318169,1717162247836,-500.0,0.00032876,11]
[328318170,1717162247845,-500.0,0.00032876,11]
[328318171,1717162247854,-500.0,0.00032876,11]
[328318172,1717162247868,-500.0,0.00032876,11]
[328318173,1717162247879,-500.0,0.00032876,11]
[328318174,1717162247888,-500.0,0.00032876,2]
[328318175,1717162247898,-500.0,0.00032876,11]
[328318176,1717162247907,-503.01960255,0.00032876,2]
[328318177,1717162247916,-500.0,0.00032876,11]
[328318178,1717162247926,-500.0,0.00032876,11]
[328318179,1717162247935,-500.0,0.00032876,11]
[328318180,1717162247944,-500.0,0.00032876,11]
[328318181,1717162247954,-500.0,0.00032876,11]
[328318182,1717162247965,-500.0,0.00032876,11]
[328318183,1717162247974,-500.0,0.00032876,11]
[328318184,1717162247983,-500.0,0.00032876,11]
[328318185,1717162247992,-500.0,0.00032876,11]
[328318186,1717162248002,-500.0,0.00032876,11]
[328318187,1717162248011,-500.0,0.00032876,11]
[328318188,1717162248021,-500.0,0.00032876,11]
[328318189,1717162248030,-269.93771762,0.00032876,11]
[328318190,1717162256528,5000.0,0.00034,90]
[328318191,1717162424132,1445368.22773784,0.00014,2]
[328318193,1717162467860,155.0,0.00014,2]
[328318196,1717162481861,247.800197,0.00014,2]
[328318197,1717162492420,900.0,0.00031,32]
[328318198,1717162520216,9086.9640064,0.00031,30]
[328318201,1717162594998,4005.88412807,0.0001,2]
[328318202,1717162641090,155.0,0.0001,2]
[328318228,1717162659075,300.58094727,0.0001,2]
[328318237,1717162826702,-155.0,0.00014065,2]
[328318240,1717162903605,1000.0,0.00031,30]
[328318241,1717162934500,1000.0,0.00031,30]
[328318242,1717162954792,1000.0,0.00031,30]
[328318243,1717162961651,1000.0,0.00031,30]
[328318244,1717162967125,1500.0,0.00030137,30]
[328318245,1717162970212,1000.0,0.00031,30]
[328318246,1717163003426,1240.0,0.00031,30]
[328318255,1717163146688,-1388.97892771,0.00014218,2]
[328318256,1717163146720,-177.17138992,0.00014219,2]
[328318257,1717163261520,651.91320181,0.00034,90]
[328318282,1717163431743,-1095.13595756,0.00014219,2]
[328318283,1717163431753,-155.0,0.00014319,2]
[328318284,1717163431763,-180.59937556,0.00014319,2]
[328318285,1717163431773,-1359.60525596,0.00014319,2]
[328318286,1717163431920,-380.04295626,0.00014319,2]
[328318288,1717163431931,-595.82225549,0.00014319,2]
[328318290,1717163431942,-3850.31055054,0.00014319,2]
[328318336,1717163439419,-11281.41034226,0.00014319,2]
[328318337,1717163439444,-2282.25486341,0.00014319,2]
[328318338,1717163439455,-1361.5753028,0.00014319,2]
[328318339,1717163439465,-946.47526423,0.00014319,2]
[328318340,1717163439475,-362.48332984,0.00014319,2]
[328318341,1717163439485,-260.45288412,0.00014319,2]
[328318342,1717163439499,-342.25,0.00014319,2]
[328318343,1717163439511,-11560.51516473,0.00014319,2]
[328318344,1717163439521,-346.92954689,0.00014319,2]
[328318345,1717163439530,-1000.0,0.00015,2]
[328318346,1717163439541,-1000.0,0.00016,2]
[328318347,1717163439552,-919.95672198,0.0001999,2]
[328318348,1717163439562,-5196.67,0.0001999,2]
[328318349,1717163439572,-8550.79143235,0.0002,4]
[328318350,1717163439582,-2706.12736717,0.0002,7]
[328318351,1717163439592,-1920.56,0.0002,2]
[328318352,1717163439602,-150.99,0.0002,2]
[328318353,1717163439613,-164.47,0.00023669,2]
[328318354,1717163439625,-160.97,0.00024384,2]
[328318355,1717163439635,-155.98,0.00024384,2]
[328318356,1717163439646,-13775.68123941,0.00025,7]
[328318357,1717163439662,-4232.47811696,0.00025,7]
[328318358,1717163439675,-9057.26740519,0.00025,7]
[328318359,1717163439685,-150.0,0.00026643,2]
[328318360,1717163439695,-3209.127,0.00026643,2]
[328318361,1717163439708,-333.28,0.00028192,2]
[328318362,1717163439719,-489.0,0.000293,3]
[328318363,1717163439729,-250.0,0.00029356,2]
[328318364,1717163439740,-23890.0,0.00029537,2]
[328318365,1717163439751,-551.34,0.00029586,2]
[328318366,1717163439761,-412.11358305,0.00029587,2]
[328318367,1717163439771,-423.7807094,0.00029587,2]
[328318368,1717163439781,-177.41,0.00029737,2]
[328318370,1717163439791,-527.81,0.0002977,2]
[328318372,1717163439801,-250.0,0.0002977,2]
[328318374,1717163439810,-520.21,0.00029951,2]
[328318376,1717163439820,-1235.38020448,0.0003,3]
[328318378,1717163439830,-11727.0,0.0003,5]
[328318380,1717163439839,-845.32989132,0.00030199,10]
[328318382,1717163439849,-333.28,0.00030456,2]
[328318384,1717163439859,-150.66714897,0.0003103,7]
[328318386,1717163439869,-156.16356488,0.00031035,7]
[328318388,1717163439879,-500.0,0.00031506,11]
[328318390,1717163439889,-152.56637886,0.0003159,7]
[328318392,1717163439898,-170.69,0.00031747,2]
[328318393,1717163439909,-500.0,0.0003178,12]
[328318394,1717163439919,-265.22,0.0003179,3]
[328318395,1717163439929,-795.66,0.0003179,3]
[328318396,1717163439941,-11333.94323265,0.000318,2]
[328318397,1717163439951,-1000.0,0.000319,2]
[328318398,1717163439961,-900.0,0.00032,33]
[328318399,1717163439971,-500.0,0.00032054,13]
[328318400,1717163439981,-150.66714897,0.00032144,7]
[328318401,1717163439991,-551.34,0.00032326,2]
[328318402,1717163440001,-500.0,0.00032328,14]
[328318403,1717163440011,-1739.26,0.00032329,2]
[328318404,1717163440021,-155.0,0.00032461,7]
[328318405,1717163440031,-150.0,0.00032466,2]
[328318406,1717163440041,-400.0,0.000325,30]
[328318407,1717163440051,-150.66714897,0.00032526,7]
[328318408,1717163440066,-252.7560391,0.00032545,4]
[328318409,1717163440077,-279.48132,0.0003255,2]
[328318410,1717163440088,-500.0,0.00032602,15]
[328318411,1717163440098,-160.31674267,0.00032608,2]
[328318412,1717163440109,-500.0,0.00032612,2]
[328318413,1717163440119,-200.0,0.00032612,2]
[328318414,1717163440130,-150.0,0.00032615,2]
[328318415,1717163440140,-150.0,0.00032632,2]
[328318416,1717163440153,-2500.0,0.00032644,2]
[328318417,1717163440164,-150.0,0.00032652,2]
[328318418,1717163440175,-155.34367956,0.00032673,7]
[328318419,1717163440184,-150.0,0.00032688,2]
[328318420,1717163440195,-150.0,0.00032688,2]
[328318421,1717163440204,-150.0,0.0003269,2]
[328318422,1717163440215,-150.0,0.00032697,2]
[328318423,1717163440225,-333.28,0.0003272,2]
[328318424,1717163440236,-150.0,0.00032721,2]
[328318425,1717163440246,-21924.64143369,0.00032744,2]
[328318426,1717163440259,-6064.18438017,0.00032744,2]
[328318427,1717163440285,-1158.01182565,0.00032744,2]
[328318428,1717163440298,-1006.68750238,0.00032744,2]
[328318429,1717163440311,-3995.93033004,0.00032744,2]
[328318430,1717163440323,-2202.83073604,0.00032744,2]
[328318431,1717163440335,-5360.37217192,0.00032744,2]
[328318432,1717163440357,-8295.87312011,0.00032744,2]
[328318433,1717163440367,-150.0,0.00032767,2]
[328318434,1717163440377,-173.20296825,0.00032768,2]
[328318435,1717163440387,-37181.1253,0.00032776,2]
[328318436,1717163440399,-10000.0,0.00032776,2]
[328318437,1717163440410,-1745.40160284,0.00032776,4]
[328318438,1717163440420,-167.9986664,0.00032776,2]
[328318439,1717163440430,-3363.90703644,0.00032776,2]
[328318440,1717163440440,-320.78811958,0.00032776,2]
[328318441,1717163440449,-161.26360729,0.00032776,2]
[328318442,1717163440459,-175.61523327,0.00032776,2]
[328318443,1717163440469,-150.0,0.00032785,2]
[328318444,1717163440479,-487.0,0.000328,17]
[328318445,1717163440489,-479.0,0.000328,17]
[328318446,1717163440501,-150.0,0.000328,6]
[328318447,1717163440510,-150.0,0.0003281,2]
[328318448,1717163440522,-1745.40160275,0.00032815,4]
[328318449,1717163440532,-150.0,0.00032826,2]
[328318450,1717163440542,-173.20296823,0.0003283,2]
[328318451,1717163440552,-150.0,0.00032834,2]
[328318452,1717163440562,-150.0,0.00032839,2]
[328318453,1717163440573,-2641.61803759,0.00032844,4]
[328318455,1717163440584,-500.0,0.00032851,3]
[328318456,1717163440593,-1745.40160275,0.00032853,4]
[328318457,1717163440604,-500.0,0.0003286,3]
[328318458,1717163440614,-2500.0,0.00032864,11]
[328318459,1717163440624,-2500.0,0.00032864,11]
[328318460,1717163440637,-1350.58555359,0.00032864,11]
[328318461,1717163440648,-11385.9664682,0.00032864,2]
[328318462,1717163440660,-66913.7421637,0.00032864,2]
[328318463,1717163440670,-1010.7781891,0.00032864,2]
[328318464,1717163440680,-3662.4426304,0.00032864,2]
[328318465,1717163440691,-151.0,0.00032866,2]
[328318466,1717163440701,-500.0,0.00032868,3]
[328318467,1717163440714,-555.8664082,0.00032874,7]
[328318468,1717163440728,-4444.1335918,0.00032874,7]
[328318469,1717163440737,-784.50568424,0.00032874,2]
[328318470,1717163440748,-155.0,0.00032874,4]
[328318471,1717163440758,-31891.24086817,0.00032874,4]
[328318472,1717163440800,-486.8359491,0.00032874,4]
[328318473,1717163440812,-3016.16793462,0.00032874,4]
[328318474,1717163440822,-157.90877204,0.00032874,4]
[328318475,1717163440832,-657.26693931,0.00032874,4]
[328318476,1717163441012,-1262.35635403,0.00032874,4]
[328318477,1717163441073,-4027.51704875,0.00032874,4]
[328318478,1717163441082,-793.34734711,0.00032874,4]
[328318479,1717163441092,-1512.76334421,0.00032874,4]
[328318480,1717163441102,-599.27979208,0.00032874,4]
[328318481,1717163441112,-485.57953486,0.00032874,4]
[328318482,1717163441122,-205.11851024,0.00032874,4]
[328318483,1717163441132,-1021.7503161,0.00032874,4]
[328318484,1717163441142,-360.51384595,0.00032874,4]
[328318485,1717163441153,-1064.85654335,0.00032874,4]
[328318486,1717163441162,-428.48017839,0.00032874,4]
[328318487,1717163441171,-202.2218218,0.00032874,4]
[328318488,1717163441181,-456.62320281,0.00032874,4]
[328318489,1717163441191,-499.82131299,0.00032874,4]
[328318490,1717163441200,-623.47972891,0.00032874,4]
[328318491,1717163441210,-184.50210729,0.00032874,4]
[328318492,1717163441219,-510.722095,0.00032874,4]
[328318493,1717163441228,-182.55573596,0.00032874,4]
[328318494,1717163441237,-321.96055433,0.00032874,4]
[328318495,1717163441247,-3152.5614987,0.00032874,4]
[328318496,1717163441256,-325.80304841,0.00032874,4]
[328318497,1717163441266,-643.32897965,0.00032874,4]
[328318498,1717163441276,-234.22233037,0.00032874,4]
[328318499,1717163441286,-687.51527312,0.00032874,4]
[328318500,1717163441296,-561.34070906,0.00032874,4]
[328318501,1717163441306,-155.0,0.00032874,4]
[328318502,1717163441316,-155.0,0.00032874,4]
[328318503,1717163441326,-385.49113214,0.00032874,4]
[328318504,1717163441335,-300.0,0.00032874,7]
[328318505,1717163441344,-11087.6595833,0.00032875,4]
[328318506,1717163441354,-225.0,0.00032876,5]
[328318507,1717163441364,-36414.8129137,0.00032876,11]
[328318508,1717163441463,-0.0015493,0.00032876,11]
[328318509,1717163441475,-18995.0,0.00032876,11]
[328318510,1717163441487,-13652.794,0.00032876,11]
[328318511,1717163441556,-2007.9991,0.00032876,11]
[328318512,1717163441572,-495.41790185,0.00032876,11]
[328318531,1717163442706,-1914.77854471,0.00032876,11]
[328318533,1717163442931,-124359.04297276,0.00032876,11]
[328318534,1717163442941,-1000.0,0.00032876,2]
[328318535,1717163442950,-1000.0,0.00032876,2]
[328318536,1717163442960,-1000.0,0.00032876,2]
[328318537,1717163442969,-1000.0,0.00032876,2]
[328318538,1717163442979,-1000.0,0.00032876,2]
[328318539,1717163442989,-167.0,0.00032876,2]
[328318540,1717163442999,-600.74,0.00032876,11]
[328318541,1717163443009,-600.74,0.00032876,11]
[328318542,1717163443019,-600.74,0.00032876,11]
[328318543,1717163443028,-600.74,0.00032876,11]
[328318544,1717163443037,-600.74,0.00032876,11]
[328318545,1717163443046,-600.74,0.00032876,11]
[328318546,1717163443056,-600.74,0.00032876,11]
[328318547,1717163443065,-600.74,0.00032876,11]
[328318548,1717163443075,-600.74,0.00032876,11]
[328318549,1717163443085,-600.74,0.00032876,11]
[328318550,1717163443095,-600.74,0.00032876,11]
[328318551,1717163443106,-600.74,0.00032876,11]
[328318552,1717163443115,-600.74,0.00032876,11]
[328318553,1717163443124,-600.74,0.00032876,11]
[328318554,1717163443134,-600.74,0.00032876,11]
[328318555,1717163443143,-600.74,0.00032876,11]
[328318556,1717163443155,-600.74,0.00032876,11]
[328318557,1717163443164,-528.99744303,0.00032876,11]
[328318558,1717163443173,-513.06454974,0.00032876,11]
[328318559,1717163443183,-511.75708735,0.00032876,11]
[328318560,1717163443192,-152.158826,0.00032876,7]